[Event "Gibraltar Challengers B 2019"]
[Site "Caleta"]
[Date "2019.01.26"]
[Round "1"]
[White "Cano Sevilla, Ivan"]
[Black "Haase, Pavel"]
[Result "1/2-1/2"]
[ECO "A80"]
[WhiteElo "1950"]
[BlackElo "2141"]
[Annotator "ChessBase"]
[PlyCount "246"]
[EventDate "2019.01.18"]
[EventType "swiss"]
[EventCountry "GGB"]
[SourceTitle "playchess.com"]
[Source "ChessBase"]
[SourceQuality "1"]
[TimeControl "6600+10"]

1. d4 {[%emt 0:00:06]} f5 {[%emt 0:00:34]} 2. Bf4 {[%emt 0:00:17]} Nf6 {[%emt 0:00:20]} 3. e3 {[%emt 0:00:04]} e6 {[%emt 0:02:56]} 4. Nf3 {[%emt 0:00:18]} b6 {[%emt 0:00:57]} 5. c4 {[%emt 0:02:27]} Bb4+ {[%emt 0:02:48]} 6. Nbd2 {[%emt 0:01:32]} Bb7 {[%emt 0:01:17]} 7. Be2 {[%emt 0:00:19]} Bxd2+ {[%emt 0:07:40]} 8. Nxd2 {[%emt 0:00:45]} d6 {[%emt 0:19:01]} 9. Bf3 {[%emt 0:05:02]} Qc8 {[%emt 0:02:07]} 10. O-O {[%emt 0:03:33]} Nbd7 {[%emt 0:00:26]} 11. h3 {[%emt 0:01:05]} O-O {[%emt 0:03:06]} 12. b4 {[%emt 0:02:45]} e5 {[%emt 0:01:42]} 13. Bxb7 {[%emt 0:01:20]} Qxb7 {[%emt 0:00:07]} 14. Bh2 {[%emt 0:00:28]} Rae8 {[%emt 0:03:51]} 15. Nb3 {[%emt 0:11:44]} f4 {[%emt 0:06:53]} 16. dxe5 {[%emt 0:07:57]} Nxe5 {[%emt 0:04:58]} 17. Bxf4 {[%emt 0:06:11]} Nxc4 {[%emt 0:00:32]} 18. Rc1 {[%emt 0:03:31]} Re4 {[%emt 0:04:49]} 19. Nd4 {[%emt 0:02:45]} b5 {[%emt 0:03:44]} 20. Qc2 {[%emt 0:13:56]} a5 {[%emt 0:22:33]} 21. bxa5 {[%emt 0:02:23]} c5 {[%emt 0:01:26]} 22. Nf3 {[%emt 0:00:34]} d5 {[%emt 0:07:44]} 23. Nd2 {[%emt 0:06:21]} Re6 {[%emt 0:01:34]} 24. Nxc4 {[%emt 0:00:39]} bxc4 {[%emt 0:00:15]} 25. Qa4 {[%emt 0:01:37]} Ra6 {[%emt 0:01:32]} 26. Rb1 {[%emt 0:00:31]} Qd7 {[%emt 0:01:33]} 27. Qxd7 {[%emt 0:06:31]} Nxd7 {[%emt 0:00:06]} 28. Rfd1 {[%emt 0:00:24]} Nf6 {[%emt 0:00:51]} 29. Rb5 {[%emt 0:02:54]} Ne4 {[%emt 0:00:45]} 30. Be5 {[%emt 0:03:37]} c3 {[%emt 0:03:40]} 31. f3 {[%emt 0:01:46]} Re8 {[%emt 0:00:40]} 32. fxe4 {[%emt 0:00:35]} Rxe5 {[%emt 0:01:23]} 33. exd5 {[%emt 0:06:36]} c2 {[%emt 0:00:30]} 34. Rc1 {[%emt 0:00:11]} Rxd5 {[%emt 0:00:09]} 35. Rxc2 {[%emt 0:00:09]} Rd3 {[%emt 0:00:19]} 36. Rcxc5 {[%emt 0:01:07]} Rxe3 {[%emt 0:00:11]} 37. Rb6 {[%emt 0:01:04]} Ra8 {[%emt 0:00:19]} 38. Rc7 {[%emt 0:01:36]} h6 {[%emt 0:00:36]} 39. a6 {[%emt 0:01:22]} Ra3 {[%emt 0:00:05]} 40. Rbb7 {[%emt 0:00:21]} R3xa6 {[%emt 0:00:14]} 41. Rxg7+ {[%emt 0:00:13]} Kh8 {[%emt 0:00:10]} 42. a4 {[%emt 0:00:34]} Rf6 {[%emt 0:00:18]} 43. Rh7+ {[%emt 0:00:24]} Kg8 {[%emt 0:00:02]} 44. Rbg7+ {[%emt 0:00:07]} Kf8 {[%emt 0:00:06]} 45. Rh8+ {[%emt 0:00:05]} Kxg7 {[%emt 0:00:05]} 46. Rxa8 {[%emt 0:00:01]} Rf4 {[%emt 0:00:15]} 47. a5 {[%emt 0:00:11]} Rf5 {[%emt 0:00:18]} 48. Kh2 {[%emt 0:00:12]} Rf4 {[%emt 0:00:09]} 49. Kg3 {[%emt 0:00:11]} Ra4 {[%emt 0:00:05]} 50. a6 {[%emt 0:00:17]} Kf7 {[%emt 0:00:16]} 51. Kf3 {[%emt 0:00:56]} Kf6 {[%emt 0:00:09]} 52. a7 {[%emt 0:00:19]} Kg7 {[%emt 0:00:05]} 53. Ke3 {[%emt 0:00:58]} Kh7 {[%emt 0:00:04]} 54. Kd3 {[%emt 0:00:14]} Kg7 {[%emt 0:00:01]} 55. Kc3 {[%emt 0:00:14]} Kh7 {[%emt 0:00:03]} 56. Kb3 {[%emt 0:00:05]} Ra1 {[%emt 0:00:06]} 57. Kb4 {[%emt 0:00:15]} Kg7 {[%emt 0:00:07]} 58. Kb5 {[%emt 0:00:04]} Rb1+ {[%emt 0:00:05]} 59. Kc6 {[%emt 0:00:59]} Ra1 {[%emt 0:00:06]} 60. Kd6 {[%emt 0:00:13]} Ra6+ {[%emt 0:00:05]} 61. Ke5 {[%emt 0:00:45]} Ra5+ {[%emt 0:00:03]} 62. Kf4 {[%emt 0:00:13]} Ra4+ {[%emt 0:00:05]} 63. Kg3 {[%emt 0:00:41]} Kh7 {[%emt 0:00:08]} 64. Kf2 {[%emt 0:00:30]} Ra3 {[%emt 0:00:06]} 65. g4 {[%emt 0:00:19]} Kg7 {[%emt 0:00:02]} 66. Ke2 {[%emt 0:00:48]} Kh7 {[%emt 0:00:11]} 67. Kd2 {[%emt 0:00:04]} Kg7 {[%emt 0:00:02]} 68. Kc2 {[%emt 0:00:01]} Ra6 {[%emt 0:00:05]} 69. Kd3 {[%emt 0:00:04]} Ra4 {[%emt 0:00:03]} 70. Kc3 {[%emt 0:00:10]} Ra1 {[%emt 0:00:03]} 71. Kd4 {[%emt 0:00:06]} Rd1+ {[%emt 0:00:06]} 72. Ke5 {[%emt 0:00:39]} Re1+ {[%emt 0:00:03]} 73. Kf4 {[%emt 0:00:06]} Rf1+ {[%emt 0:00:02]} 74. Kg3 {[%emt 0:00:24]} Rg1+ {[%emt 0:00:02]} 75. Kh4 {[%emt 0:00:02]} Ra1 {[%emt 0:00:03]} 76. Kg3 {[%emt 0:02:16]} Ra3+ {[%emt 0:00:04]} 77. Kf2 {[%emt 0:00:22]} Ra2+ {[%emt 0:00:05]} 78. Ke3 {[%emt 0:00:01]} Ra4 {[%emt 0:00:04]} 79. h4 {[%emt 0:00:30]} Kh7 {[%emt 0:00:05]} 80. Kd3 {[%emt 0:00:24]} Kg7 {[%emt 0:00:07]} 81. Kc3 {[%emt 0:00:10]} Ra1 {[%emt 0:00:06]} 82. Kb2 {[%emt 0:00:24]} Ra6 {[%emt 0:00:03]} 83. Kb3 {[%emt 0:00:05]} Ra1 {[%emt 0:00:02]} 84. Kc4 {[%emt 0:00:28]} Rc1+ {[%emt 0:00:02]} 85. Kd3 {[%emt 0:00:04]} Rd1+ {[%emt 0:00:05]} 86. Kc3 {[%emt 0:00:10]} Ra1 {[%emt 0:00:03]} 87. g5 {[%emt 0:00:22]} hxg5 {[%emt 0:00:12]} 88. hxg5 {[%emt 0:00:01]} Ra3+ {[%emt 0:00:07]} 89. Kb2 {[%emt 0:00:19]} Ra6 {[%emt 0:00:02]} 90. Kb3 {[%emt 0:00:02]} Ra1 {[%emt 0:00:02]} 91. Kc4 {[%emt 0:00:08]} Rc1+ {[%emt 0:00:01]} 92. Kd3 {[%emt 0:00:02]} Rd1+ {[%emt 0:00:03]} 93. Ke2 {[%emt 0:00:02]} Ra1 {[%emt 0:00:02]} 94. Kf2 {[%emt 0:00:03]} Ra3 {[%emt 0:00:04]} 95. Ke2 {[%emt 0:00:11]} Ra2+ {[%emt 0:00:08]} 96. Kd3 {[%emt 0:00:06]} Ra1 {[%emt 0:00:03]} 97. Kc2 {[%emt 0:00:32]} Ra6 {[%emt 0:00:02]} 98. Kb2 {[%emt 0:00:14]} Rb6+ {[%emt 0:00:05]} 99. Kc3 {[%emt 0:00:12]} Ra6 {[%emt 0:00:04]} 100. Kb4 {[%emt 0:00:48]} Ra1 {[%emt 0:00:02]} 101. Kc4 {[%emt 0:00:18]} Rc1+ {[%emt 0:00:02]} 102. Kb3 {[%emt 0:00:03]} Ra1 {[%emt 0:00:02]} 103. Kb2 {[%emt 0:00:03]} Ra6 {[%emt 0:00:02]} 104. Kc3 {[%emt 0:00:07]} Ra1 {[%emt 0:00:01]} 105. Kd4 {[%emt 0:00:01]} Rd1+ {[%emt 0:00:02]} 106. Kc3 {[%emt 0:00:05]} Ra1 {[%emt 0:00:02]} 107. Kd3 {[%emt 0:00:01]} Rd1+ {[%emt 0:00:03]} 108. Ke3 {[%emt 0:00:10]} Re1+ {[%emt 0:00:03]} 109. Kf3 {[%emt 0:00:01]} Ra1 {[%emt 0:00:03]} 110. Rc8 {[%emt 0:00:29]} Rxa7 {[%emt 0:00:05]} 111. Kg4 {[%emt 0:00:03]} Ra6 {[%emt 0:00:35]} 112. Kh5 {[%emt 0:00:23]} Rb6 {[%emt 0:00:16]} 113. Rc7+ {[%emt 0:00:02]} Kg8 {[%emt 0:00:14]} 114. Rd7 {[%emt 0:00:24]} Ra6 {[%emt 0:00:05]} 115. Re7 {[%emt 0:00:32]} Rb6 {[%emt 0:00:05]} 116. Re4 {[%emt 0:00:19]} Kg7 {[%emt 0:00:26]} 117. Rc4 {[%emt 0:00:05]} Ra6 {[%emt 0:00:07]} 118. Rc5 {[%emt 0:00:06]} Rb6 {[%emt 0:00:14]} 119. g6 {[%emt 0:00:26]} Rb1 {[%emt 0:00:12]} 120. Rc7+ {[%emt 0:00:01]} Kg8 {[%emt 0:00:01]} 121. Rc5 {[%emt 0:00:26]} Kg7 {[%emt 0:00:17]} 122. Rc7+ {[%emt 0:00:11]} Kg8 {[%emt 0:00:01]} 123. Rc5 {[%emt 0:00:07]} Kg7 {[%emt 0:00:01]} 1/2-1/2

[Event "Gibraltar Challengers B 2019"]
[Site "Caleta"]
[Date "2019.01.26"]
[Round "1"]
[White "Garcia Rodriguez, Inaki"]
[Black "Ramasindraibe, Girard"]
[Result "0-1"]
[ECO "D00"]
[WhiteElo "1931"]
[BlackElo "2129"]
[Annotator "NA"]
[PlyCount "34"]
[EventDate "2019.01.18"]
[EventType "swiss"]
[EventCountry "GGB"]
[SourceTitle "playchess.com"]
[Source "ChessBase"]
[SourceQuality "1"]
[TimeControl "6600+10"]

1. d4 {[%emt 0:01:26]} Nf6 {[%emt 0:00:15]} 2. Bg5 {[%emt 0:00:33]} d5 {[%emt 0:01:36]} 3. Bxf6 {[%emt 0:00:08]} exf6 {[%emt 0:00:36]} 4. e3 {[%emt 0:00:12]} Be7 {[%emt 0:06:21]} 5. c4 {[%emt 0:00:45]} O-O {[%emt 0:01:04]} 6. Nc3 {[%emt 0:00:18]} Be6 {[%emt 0:02:19]} 7. Qb3 {[%emt 0:02:37]} dxc4 {[%emt 0:05:48]} 8. Qxb7 {[%emt 0:02:39]} Nd7 {[%emt 0:00:12]} 9. Qf3 $17 {[%emt 0:01:21]} Rb8 {[%emt 0:04:42]} 10. d5 {[%emt 0:01:28]} Ne5 {[%emt 0:00:09]} 11. Qe4 {[%emt 0:00:25]} Rxb2 {[%emt 0:03:18]} 12. Bxc4 {[%emt 0:21:31]} f5 {[%emt 0:17:56]} 13. Qd4 {[%emt 0:04:13]} c5 {[%emt 0:00:35]} 14. Qxe5 {[%emt 0:03:05]} Bf6 {[%emt 0:00:17]} 15. Qf4 {[%emt 0:00:48]} Bxc3+ {[%emt 0:00:13]} 16. Kf1 {[%emt 0:00:05]} Bxd5 {[%emt 0:00:29]} 17. Ne2 {[%emt 0:02:00]} g5 {[%emt 0:02:32]} 0-1

[Event "Gibraltar Challengers B 2019"]
[Site "Caleta"]
[Date "2019.01.26"]
[Round "1"]
[White "Adebajo, Olufemi"]
[Black "Jordan Martinez, David"]
[Result "1-0"]
[ECO "B53"]
[WhiteElo "1915"]
[BlackElo "2125"]
[Annotator "NA"]
[PlyCount "137"]
[EventDate "2019.01.18"]
[EventType "swiss"]
[EventCountry "GGB"]
[SourceTitle "playchess.com"]
[Source "ChessBase"]
[SourceQuality "1"]
[TimeControl "6600+10"]

1. e4 {[%emt 0:00:11]} c5 {[%emt 0:00:00]} 2. Nc3 {[%emt 0:00:34]} d6 {[%emt 0:00:15]} 3. Nf3 {[%emt 0:00:43]} Nf6 {[%emt 0:00:23]} 4. d4 {[%emt 0:00:29]} cxd4 {[%emt 0:00:07]} 5. Qxd4 {[%emt 0:00:14]} Nc6 {[%emt 0:00:11]} 6. Bb5 {[%emt 0:00:15]} Bd7 {[%emt 0:00:07]} 7. Bxc6 {[%emt 0:00:14]} Bxc6 {[%emt 0:00:03]} 8. Bg5 {[%emt 0:00:16]} e6 {[%emt 0:00:17]} 9. O-O-O {[%emt 0:00:51]} Be7 {[%emt 0:00:09]} 10. Kb1 {[%emt 0:00:25]} Qa5 {[%emt 0:01:26]} 11. Rhe1 {[%emt 0:01:09]} O-O {[%emt 0:04:18]} 12. Qd2 {[%emt 0:01:17]} Qb6 {[%emt 0:02:23]} 13. Nd4 {[%emt 0:01:31] LiveBook: 17 Games B53: Sicilian: 2...d6: Lines with Qxd4} Rfd8 {[%emt 0:03:55]} 14. f3 {[%emt 0:01:48]} (14. g4 Rac8 15. f3 Be8 16. Nd5 Nxd5 17. exd5 Bxg5 18. Qxg5 Qc5 19. Qc1 e5 20. Nf5 Rd7 {½-½ (31) Cao,S (2548)-Acs,P (2522) Hungary 2007}) 14... a5 {[%emt 0:01:31]} 15. Be3 {[%emt 0:00:54]} Qa6 $146 {[%emt 0:02:23]} ({Predecessor:} 15... Qc7 16. Ndb5 Bxb5 17. Nxb5 Qc6 18. a4 d5 19. e5 Ne8 20. Qf2 Rdc8 {1-0 (70) Husek,M (2089)-Hronek,M (1866) Czech Republic 2017}) 16. g4 {[%emt 0:00:39]} b5 {[%emt 0:01:32]} 17. Nce2 {[%emt 0:04:12]} b4 {[%emt 0:02:17]} 18. Nxc6 {[%emt 0:01:22]} Qxc6 {[%emt 0:00:03]} 19. Nd4 {[%emt 0:00:59]} Qb7 {[%emt 0:00:29]} 20. h4 {[%emt 0:01:19]} a4 {[%emt 0:06:23]} 21. g5 {[%emt 0:02:07]} Nh5 {[%emt 0:03:35]} 22. Qe2 {[%emt 0:02:35]} g6 {[%emt 0:15:23]} 23. Qb5 {[%emt 0:02:11]} Qxb5 {[%emt 0:01:49]} 24. Nxb5 {[%emt 0:00:11]} Ra5 {[%emt 0:06:24]} 25. Nd4 {[%emt 0:05:33]} Rc8 {[%emt 0:00:20]} 26. Bd2 {[%emt 0:00:52]} d5 {[%emt 0:01:36]} 27. a3 {[%emt 0:03:20]} dxe4 {[%emt 0:05:23]} 28. Bxb4 {[%emt 0:02:42]} Bxb4 {[%emt 0:00:06]} 29. axb4 {[%emt 0:00:11]} Ra7 {[%emt 0:02:01]} 30. fxe4 {[%emt 0:01:57]} Nf4 {[%emt 0:00:11]} 31. Nb5 {[%emt 0:02:41]} Raa8 {[%emt 0:02:06]} 32. Rd7 {[%emt 0:02:28]} e5 {[%emt 0:03:15]} 33. c3 {[%emt 0:01:47]} Rf8 {[%emt 0:02:06]} 34. Red1 {[%emt 0:02:01]} h6 {[%emt 0:01:17]} 35. Nc7 {[%emt 0:07:19]} Rab8 {[%emt 0:00:46]} 36. Nd5 {[%emt 0:01:01]} hxg5 {[%emt 0:00:35]} 37. hxg5 {[%emt 0:00:22]} Nh3 {[%emt 0:00:22]} 38. Ne7+ {[%emt 0:04:28]} Kg7 {[%emt 0:00:13]} 39. Nc6 {[%emt 0:01:14]} Rb6 {[%emt 0:02:22]} 40. Nxe5 {[%emt 0:01:40]} Nxg5 {[%emt 0:00:45]} 41. Nc4 {[%emt 0:04:33]} Re6 {[%emt 0:02:38]} 42. e5 {[%emt 0:01:08]} Nf3 {[%emt 0:00:12]} 43. R7d5 {[%emt 0:05:36]} g5 {[%emt 0:01:33]} 44. Rd6 {[%emt 0:02:03]} Rfe8 {[%emt 0:05:26]} 45. Rxe6 {[%emt 0:03:41]} Rxe6 {[%emt 0:00:02]} 46. b5 {[%emt 0:00:44]} Nxe5 {[%emt 0:10:07]} 47. Nd6 {[%emt 0:01:13]} g4 {[%emt 0:00:33]} 48. b6 {[%emt 0:00:25]} Kg6 {[%emt 0:00:53]} 49. b7 {[%emt 0:00:30]} Nc6 {[%emt 0:00:07]} 50. Ne4 {[%emt 0:02:02]} Kf5 {[%emt 0:10:10]} 51. Nc5 {[%emt 0:00:41]} Re8 {[%emt 0:00:18]} 52. Rd5+ {[%emt 0:03:39]} Kf4 {[%emt 0:01:12]} 53. Rd6 {[%emt 0:00:35]} Nb8 {[%emt 0:02:43]} 54. Rf6+ {[%emt 0:00:47]} Ke3 {[%emt 0:00:13]} 55. Rxf7 {[%emt 0:00:24]} g3 {[%emt 0:00:04]} 56. Rg7 {[%emt 0:00:51]} Kf3 {[%emt 0:00:18]} 57. Kc2 {[%emt 0:01:20]} g2 {[%emt 0:00:17]} 58. Nd3 {[%emt 0:02:30]} Nc6 {[%emt 0:02:54]} 59. Kd2 {[%emt 0:02:42]} Rd8 {[%emt 0:00:19]} 60. Kc2 $11 {[%emt 0:00:55]} Re8 {[%emt 0:00:14]} 61. Rf7+ {[%emt 0:00:30]} Kg3 {[%emt 0:00:10]} 62. Rg7+ {[%emt 0:00:30]} Kh2 {[%emt 0:00:05]} 63. Rh7+ {[%emt 0:00:52]} Kg3 {[%emt 0:00:03]} 64. Rg7+ {[%emt 0:00:40]} Kh2 {[%emt 0:00:01]} 65. Rh7+ {[%emt 0:00:15]} Kg1 {[%emt 0:00:04]} 66. Nf4 {[%emt 0:00:57]} Kf1 {[%emt 0:00:23]} 67. Nxg2 {[%emt 0:00:40]} Kxg2 {[%emt 0:00:08]} 68. Rc7 {[%emt 0:00:06]} Re7 {[%emt 0:01:12]} 69. Rxe7 {[%emt 0:00:27]} 1-0

[Event "Gibraltar Challengers B 2019"]
[Site "Caleta"]
[Date "2019.01.26"]
[Round "1"]
[White "Obiamiwe, Paul"]
[Black "Severijnen, Arjon"]
[Result "0-1"]
[ECO "A34"]
[WhiteElo "1903"]
[BlackElo "2120"]
[Annotator "NA"]
[PlyCount "104"]
[EventDate "2019.01.18"]
[EventType "swiss"]
[EventCountry "GGB"]
[SourceTitle "playchess.com"]
[Source "ChessBase"]
[SourceQuality "1"]
[TimeControl "6600+10"]

1. Nf3 {[%emt 0:07:01]} d5 {[%emt 0:00:15]} 2. d4 {[%emt 0:00:25]} c5 {[%emt 0:00:26]} 3. c4 {[%emt 0:00:23]} Nf6 {[%emt 0:01:01]} 4. Nc3 {[%emt 0:00:52]} cxd4 {[%emt 0:03:40]} 5. Nxd4 {[%emt 0:00:49] A34: Symmetrical English: 2 Nc3, lines with ...d5} (5. Nxd5 $11 Nxd5 6. cxd5 Qxd5 7. Qxd4 Qxd4 8. Nxd4 e5 9. Nb5 Bb4+ 10. Bd2 Bxd2+ 11. Kxd2 Na6 12. Rc1 Ke7 13. e4 {0-1 (42) Bosman,M (2389)-Warmerdam,M (2420) Netherlands 2018}) 5... e5 {[%emt 0:00:50]} 6. Nf3 {[%emt 0:02:30]} d4 {[%emt 0:02:15]} 7. Nxe5 {[%emt 0:02:23]} dxc3 {[%emt 0:06:02]} 8. Qxd8+ {[%emt 0:00:10]} Kxd8 {[%emt 0:00:04]} 9. Nxf7+ {[%emt 0:00:21]} Ke8 {[%emt 0:00:06]} 10. Nxh8 {[%emt 0:00:04]} Bb4 {[%emt 0:00:23]} 11. b3 {[%emt 0:06:09]} c2+ $146 {[%emt 0:16:36]} ({Predecessor:} 11... Bf5 12. f3 Nc6 {0-1 (46) Chaury,F (2183)-Konson,K (2251) Baden 2003}) 12. Bd2 {[%emt 0:00:31]} Ba3 {[%emt 0:07:18]} 13. f3 {[%emt 0:15:03]} Bb2 {[%emt 0:00:47]} 14. Rc1 {[%emt 0:00:11]} Bxc1 {[%emt 0:00:05]} 15. Bxc1 {[%emt 0:00:03]} Nc6 {[%emt 0:01:11]} 16. Kd2 {[%emt 0:02:51]} Be6 {[%emt 0:07:17]} 17. Kxc2 {[%emt 0:03:09]} Kd7 {[%emt 0:01:16]} 18. Bb2 {[%emt 0:02:46]} Rxh8 {[%emt 0:01:15]} 19. a3 {[%emt 0:09:45]} b5 {[%emt 0:07:27]} 20. e4 {[%emt 0:13:34]} bxc4 {[%emt 0:03:23]} 21. b4 {[%emt 0:00:59]} Ke7 {[%emt 0:08:06]} 22. Be2 {[%emt 0:01:03]} Rb8 {[%emt 0:05:05]} 23. Bc3 {[%emt 0:02:07]} g5 {[%emt 0:00:40]} 24. Rb1 {[%emt 0:08:56]} a6 {[%emt 0:02:29]} 25. a4 {[%emt 0:02:16]} Nd7 {[%emt 0:01:22]} 26. b5 {[%emt 0:00:40]} axb5 {[%emt 0:01:21]} 27. Rxb5 {[%emt 0:03:07]} Rxb5 {[%emt 0:01:09]} 28. axb5 {[%emt 0:00:08]} Na7 {[%emt 0:01:25]} 29. b6 {[%emt 0:05:30]} Nxb6 {[%emt 0:00:12]} 30. Bd4 {[%emt 0:00:28]} Nac8 {[%emt 0:06:09]} 31. g3 {[%emt 0:00:35]} Nd7 {[%emt 0:02:24]} 32. Kc3 {[%emt 0:07:35]} Nd6 {[%emt 0:01:16]} 33. Kb4 {[%emt 0:00:27]} h5 {[%emt 0:02:52]} 34. h4 {[%emt 0:05:59]} g4 {[%emt 0:00:44]} 35. fxg4 {[%emt 0:02:58]} hxg4 {[%emt 0:00:48]} 36. h5 {[%emt 0:00:55]} Nxe4 {[%emt 0:03:11]} 37. h6 {[%emt 0:00:28]} Ndf6 {[%emt 0:01:43]} 38. Bxc4 {[%emt 0:00:12]} Bxc4 {[%emt 0:00:22]} 39. Kxc4 {[%emt 0:00:02]} Nxg3 {[%emt 0:00:40]} 40. Be5 {[%emt 0:01:07]} Ngh5 {[%emt 0:00:27]} 41. Kd4 {[%emt 0:00:31]} Kf7 {[%emt 0:00:11]} 42. Bb8 {[%emt 0:00:29]} Kg6 {[%emt 0:00:13]} 43. Ke3 {[%emt 0:00:21]} Kxh6 {[%emt 0:00:12]} 44. Kf2 {[%emt 0:00:06]} Kg6 {[%emt 0:00:10]} 45. Kg1 {[%emt 0:00:09]} Kf5 {[%emt 0:00:10]} 46. Bc7 {[%emt 0:00:06]} Ke4 {[%emt 0:00:12]} 47. Bb8 {[%emt 0:00:06]} Kf3 {[%emt 0:00:10]} 48. Bh2 {[%emt 0:00:36]} Ne4 {[%emt 0:00:16]} 49. Kf1 {[%emt 0:00:10]} Neg3+ {[%emt 0:00:31]} 50. Kg1 {[%emt 0:00:21]} Ne2+ {[%emt 0:00:18]} 51. Kf1 {[%emt 0:00:05]} Nhg3+ {[%emt 0:00:10]} 52. Ke1 {[%emt 0:00:55]} Kg2 {[%emt 0:00:07]} 0-1

[Event "Gibraltar Challengers B 2019"]
[Site "Caleta"]
[Date "2019.01.26"]
[Round "1"]
[White "Pereira Lopez, Aketza"]
[Black "Verneuil, Pascal"]
[Result "0-1"]
[ECO "B26"]
[WhiteElo "1861"]
[BlackElo "2114"]
[Annotator "NA"]
[PlyCount "78"]
[EventDate "2019.01.18"]
[EventType "swiss"]
[EventCountry "GGB"]
[SourceTitle "playchess.com"]
[Source "ChessBase"]
[SourceQuality "1"]
[TimeControl "6600+10"]

1. e4 {[%emt 0:00:00]} c5 {[%emt 0:02:15]} 2. Nc3 {[%emt 0:00:00]} Nc6 {[%emt 0:00:22]} 3. g3 {[%emt 0:00:01]} g6 {[%emt 0:00:17]} 4. Bg2 {[%emt 0:00:09]} Bg7 {[%emt 0:00:05]} 5. d3 {[%emt 0:00:10]} Rb8 {[%emt 0:00:11]} 6. a4 {[%emt 0:01:03]} a6 {[%emt 0:00:53]} 7. Be3 {[%emt 0:03:03]} d6 {[%emt 0:00:30] LiveBook: 26 Games} 8. Nge2 {[%emt 0:05:42] B26: Closed Sicilian: 3 g3, lines with early Be3} Nd4 {[%emt 0:00:59]} 9. O-O {[%emt 0:02:20]} h5 {[%emt 0:01:15]} 10. h3 {[%emt 0:01:32]} b5 {[%emt 0:09:18]} 11. axb5 {[%emt 0:03:12]} axb5 {[%emt 0:00:24]} 12. Qd2 $146 {[%emt 0:01:41]} ({Predecessor:} 12. f4 b4 13. Bxd4 cxd4 14. Nb1 e6 15. Nd2 Ne7 {0-1 (31) Piay Garcia,A (1922)-Strikovic,A (2557) Marrakesh 2010}) 12... Bxh3 {[%emt 0:02:07]} 13. Bxd4 {[%emt 0:02:54]} cxd4 {[%emt 0:00:09]} 14. Bxh3 {[%emt 0:00:20]} dxc3 {[%emt 0:00:05]} 15. bxc3 {[%emt 0:01:29]} b4 {[%emt 0:01:20]} 16. d4 {[%emt 0:03:58]} bxc3 {[%emt 0:04:51]} 17. Qxc3 {[%emt 0:06:29]} Nf6 {[%emt 0:11:38]} 18. Qc6+ {[%emt 0:01:02]} Kf8 {[%emt 0:00:05]} 19. f3 {[%emt 0:25:08]} Bh6 {[%emt 0:09:00]} 20. Rfb1 {[%emt 0:11:21]} Kg7 {[%emt 0:01:40]} 21. Rb7 {[%emt 0:05:24]} h4 {[%emt 0:05:56]} 22. Raa7 {[%emt 0:03:10]} Ng8 {[%emt 0:05:04]} 23. Kg2 {[%emt 0:10:19]} hxg3 {[%emt 0:00:55]} 24. Nxg3 {[%emt 0:02:25]} Bg5 {[%emt 0:00:30]} 25. Qd5 {[%emt 0:04:53]} Bh4 {[%emt 0:02:32]} 26. e5 {[%emt 0:01:42]} dxe5 {[%emt 0:03:02]} 27. Qxe5+ $18 {[%emt 0:01:10] Double Attack} Bf6 {[%emt 0:00:26]} 28. Qxb8 {[%emt 0:00:46]} Qxd4 {[%emt 0:00:09]} 29. Rd7 {[%emt 0:01:03]} Qh4 {[%emt 0:00:19]} 30. Bg4 {[%emt 0:02:24]} Qh2+ {[%emt 0:00:10]} 31. Kf1 {[%emt 0:00:06]} Qxc2 {[%emt 0:01:42]} 32. Rac7 {[%emt 0:02:40]} Qa2 {[%emt 0:00:49]} 33. Rc8 {[%emt 0:07:07]} Qa1+ {[%emt 0:01:07]} 34. Kg2 {[%emt 0:00:20]} Be5 {[%emt 0:01:35]} 35. Qa7 {[%emt 0:00:26]} Qb2+ {[%emt 0:00:20]} 36. Qf2 {[%emt 0:00:17]} Rh2+ {[%emt 0:00:08]} 37. Kxh2 {[%emt 0:00:01]} Qxf2+ {[%emt 0:00:08]} 38. Kh1 {[%emt 0:00:16]} Bxg3 {[%emt 0:00:10]} 39. Rxg8+ {[%emt 0:00:18]} Kxg8 {[%emt 0:00:09]} 0-1

[Event "Gibraltar Challengers B 2019"]
[Site "Caleta"]
[Date "2019.01.26"]
[Round "1"]
[White "Fischer, Gerd"]
[Black "Bub, Volker"]
[Result "0-1"]
[ECO "E90"]
[WhiteElo "1845"]
[BlackElo "2108"]
[Annotator "NA"]
[PlyCount "67"]
[EventDate "2019.01.18"]
[EventType "swiss"]
[EventCountry "GGB"]
[SourceTitle "playchess.com"]
[Source "ChessBase"]
[SourceQuality "1"]
[TimeControl "6600+10"]

1. d4 {[%emt 0:00:00]} Nf6 {[%emt 0:02:49]} 2. c4 {[%emt 0:00:05]} g6 {[%emt 0:01:00]} 3. Nc3 {[%emt 0:00:15]} Bg7 {[%emt 0:00:06]} 4. e4 {[%emt 0:00:18]} d6 {[%emt 0:00:20]} 5. h3 {[%emt 0:00:25]} O-O {[%emt 0:00:21]} 6. Be3 {[%emt 0:00:49]} e5 {[%emt 0:06:26]} 7. d5 {[%emt 0:02:55]} Na6 {[%emt 0:02:46]} 8. Nf3 {[%emt 0:03:33]} Nh5 {[%emt 0:04:02]} 9. g4 {[%emt 0:16:52] E90: King's Indian: Classical: Early deviations and 6 h3} (9. a3 c5 10. dxc6 bxc6 11. b4 f5 12. Qa4 c5 13. Rd1 Bb7 14. bxc5 f4 15. c6 fxe3 16. cxb7 exf2+ 17. Kd2 Nc5 18. bxa8=Q Qxa8 {0-1 (18) Kovalenko,I (2684)-Mamedov,R (2688) Tallinn 2016}) 9... Nf4 {[%emt 0:09:19]} 10. Ne2 $146 {[%emt 0:03:15]} ({Predecessor:} 10. Qd2 f5 11. Nh2 Nc5 12. Bxc5 dxc5 13. O-O-O Kh8 14. Kb1 Bd7 15. Qe3 Qe7 16. Qg3 c6 {0-1 (30) Ahmedhanov,N (1795)-Lindborg,P (2161) Vaxjo 2016}) 10... Nxe2 {[%emt 0:05:24]} 11. Bxe2 {[%emt 0:00:38]} Nc5 {[%emt 0:01:05]} 12. Nd2 {[%emt 0:13:51]} a5 {[%emt 0:01:32]} 13. Qc2 {[%emt 0:03:10]} a4 {[%emt 0:05:40]} 14. Nf1 {[%emt 0:06:38]} Bd7 {[%emt 0:04:36]} 15. Ng3 {[%emt 0:00:46]} c6 {[%emt 0:03:00]} 16. Qd2 {[%emt 0:01:54]} cxd5 {[%emt 0:02:36]} 17. cxd5 {[%emt 0:01:38]} Qa5 {[%emt 0:04:00]} 18. O-O-O {[%emt 0:03:45]} Rfc8 {[%emt 0:06:33]} 19. Kb1 $11 {[%emt 0:01:03]} Qxd2 {[%emt 0:21:29]} 20. Rxd2 {[%emt 0:00:40]} Bf6 {[%emt 0:02:10]} 21. h4 {[%emt 0:06:45]} Bd8 {[%emt 0:07:11]} 22. h5 {[%emt 0:02:41]} Ba5 {[%emt 0:02:35]} 23. Rdd1 {[%emt 0:00:49]} a3 {[%emt 0:04:10]} 24. Bxc5 {[%emt 0:10:19]} Rxc5 {[%emt 0:00:07]} 25. Rc1 {[%emt 0:00:35]} Rac8 {[%emt 0:00:30]} 26. hxg6 {[%emt 0:04:00]} hxg6 {[%emt 0:04:00]} 27. f3 {[%emt 0:03:11]} Bb4 {[%emt 0:00:32]} 28. Rhd1 {[%emt 0:02:55]} axb2 {[%emt 0:00:14]} 29. Rxc5 {[%emt 0:00:16]} Rxc5 {[%emt 0:00:18]} 30. Kxb2 {[%emt 0:00:12]} Ba4 {[%emt 0:00:14]} 31. Rd3 {[%emt 0:00:49]} Be1 {[%emt 0:02:52]} 32. Ra3 {[%emt 0:02:37]} b5 {[%emt 0:00:11]} 33. Kb1 {[%emt 0:00:02]} Rc2 34. Rd3 {[%emt 0:00:06]} 0-1